[Event "WJCC U20 Girls 2019"]
[Site "New Delhi"]
[Date "2019.10.21"]
[Round "7.2"]
[White "Vaishali R"]
[Black "Shuvalova, Polina"]
[Result "0-1"]
[ECO "A05"]
[WhiteElo "2385"]
[BlackElo "2412"]
[Annotator "NA"]
[PlyCount "74"]
[EventDate "2019.10.15"]
[EventType "swiss"]
[EventCountry "IND"]
[SourceTitle "playchess.com"]
[Source "ChessBase"]
[SourceQuality "1"]
[TimeControl "40/5400+30:1800+30"]

1. Nf3 {[%emt 0:00:08]} Nf6 {[%emt 0:00:07]} 2. c4 {[%emt 0:00:07]} e6 {[%emt 0:00:22]} 3. g3 {[%emt 0:00:17]} d5 {[%emt 0:00:07]} 4. b3 {[%emt 0:00:12]} Be7 {[%emt 0:00:31]} 5. Bg2 {[%emt 0:00:07]} O-O {[%emt 0:00:17]} 6. Bb2 {[%emt 0:00:20]} c5 {[%emt 0:02:24]} 7. O-O {[%emt 0:01:43]} b6 {[%emt 0:04:38]} 8. cxd5 {[%emt 0:03:47]} Nxd5 {[%emt 0:00:29]} 9. d4 {[%emt 0:02:18]} Bb7 {[%emt 0:00:44]} 10. Nc3 {[%emt 0:05:57]} Nd7 {[%emt 0:06:18]} 11. Rc1 {[%emt 0:04:46]} Rc8 {[%emt 0:03:30]} 12. Nxd5 {[%emt 0:07:03]} Bxd5 {[%emt 0:00:10]} 13. Qd3 {[%emt 0:01:48]} cxd4 {[%emt 0:03:58]} 14. Bxd4 {[%emt 0:02:07]} Nc5 {[%emt 0:07:33]} 15. Qe3 {[%emt 0:11:25]} Qd7 {[%emt 0:05:04]} 16. b4 $11 {[%emt 0:15:58]} Nb7 {[%emt 0:06:15]} 17. a3 {[%emt 0:12:52]} Nd6 {[%emt 0:04:08]} 18. Ba1 {[%emt 0:03:13]} Qb7 {[%emt 0:09:19]} 19. Rfd1 {[%emt 0:02:18]} h6 {[%emt 0:04:37]} 20. Qf4 {[%emt 0:04:50]} Rxc1 {[%emt 0:02:29]} 21. Rxc1 Rc8 {[%emt 0:00:08]} 22. Rd1 {[%emt 0:05:44]} Bf8 {[%emt 0:05:29]} 23. Bf1 {[%emt 0:04:55]} Nc4 {[%emt 0:05:44]} 24. b5 {[%emt 0:09:01]} Nxa3 {[%emt 0:06:43]} 25. Ne5 {[%emt 0:00:55]} f6 {[%emt 0:08:46]} 26. Ng4 {[%emt 0:00:33]} Rc4 {[%emt 0:02:05]} 27. e4 {[%emt 0:00:32]} Rxe4 {[%emt 0:00:55]} 28. Nxf6+ {[%emt 0:00:12]} gxf6 {[%emt 0:00:09]} 29. Qxf6 {[%emt 0:00:03]} Qg7 {[%emt 0:01:36]} 30. Qd8 {[%emt 0:00:22]} Qf7 {[%emt 0:03:51]} 31. Rc1 {[%emt 0:01:18]} Nc4 {[%emt 0:01:04]} 32. Bf6 {[%emt 0:00:25]} Rg4 {[%emt 0:02:45]} 33. Be2 {[%emt 0:00:38]} Rg6 {[%emt 0:00:43]} 34. Ba1 {[%emt 0:00:27]} Nd2 {[%emt 0:01:54]} 35. Rc7 Qf5 {[%emt 0:00:17]} 36. Rc1 {[%emt 0:01:05]} Nf3+ {[%emt 0:00:26]} 37. Kf1 {[%emt 0:00:09]} Qh3# {[%emt 0:00:05]} 0-1

[Event "WJCC U20 Girls 2019"]
[Site "New Delhi"]
[Date "2019.10.21"]
[Round "7.4"]
[White "Divya Deshmukh"]
[Black "Altantuya, Boldbaatar"]
[Result "1-0"]
[ECO "C05"]
[WhiteElo "2358"]
[BlackElo "2277"]
[Annotator "NA"]
[PlyCount "85"]
[EventDate "2019.10.15"]
[EventType "swiss"]
[EventCountry "IND"]
[SourceTitle "playchess.com"]
[Source "ChessBase"]
[SourceQuality "1"]
[TimeControl "40/5400+30:1800+30"]

1. e4 {[%emt 0:00:00]} e6 {[%emt 0:00:00]} 2. d4 {[%emt 0:00:00]} d5 {[%emt 0:00:11]} 3. Nd2 {[%emt 0:00:00]} Nf6 {[%emt 0:02:04]} 4. e5 {[%emt 0:00:00]} Nfd7 {[%emt 0:00:07]} 5. Ngf3 {[%emt 0:00:00]} c5 {[%emt 0:00:40]} 6. c3 {[%emt 0:00:00]} Nc6 {[%emt 0:00:37]} 7. Bd3 {[%emt 0:00:02]} cxd4 {[%emt 0:01:28]} 8. cxd4 {[%emt 0:00:04]} Qb6 {[%emt 0:00:27]} 9. O-O {[%emt 0:01:25]} Nxd4 {[%emt 0:11:04]} 10. Nxd4 {[%emt 0:00:32]} Qxd4 {[%emt 0:00:07]} 11. Nf3 {[%emt 0:00:02]} Qb6 {[%emt 0:01:49]} 12. a3 {[%emt 0:00:03] C06: French Tarrasch: 3...Nf6 4 e5 Nfd7 5 Bd3 main lines} (12. Qa4 Qb4 13. Qc2 Nc5 14. Bd2 Qa4 15. b3 Qd7 16. Rac1 b6 17. Nd4 Ba6 18. Bxa6 Nxa6 19. Qd3 Nc5 20. Qe2 a5 21. Be3 Be7 22. Qg4 g6 {1-0 (75) Mamedov,R (2660)-Wang,H (2734) Shamkir 2014}) 12... a5 {[%emt 0:07:25]} 13. Qa4 {[%emt 0:00:58]} Be7 {[%emt 0:15:43]} 14. Bb5 {[%emt 0:04:23]} Qd8 {[%emt 0:01:00]} 15. Qg4 {[%emt 0:02:52]} g6 $146 {[%emt 0:04:01]} ({Predecessor:} 15... Kf8) 16. Bh6 {[%emt 0:00:45]} Bf8 {[%emt 0:01:11]} 17. Qf4 {[%emt 0:05:01]} Bxh6 {[%emt 0:13:25]} 18. Qxh6 {[%emt 0:00:09]} Qe7 {[%emt 0:00:05]} 19. Qg7 {[%emt 0:07:39]} Qf8 {[%emt 0:00:56]} 20. Qf6 $1 {[%emt 0:00:08]} Rg8 {[%emt 0:03:12]} 21. Rac1 {[%emt 0:10:00]} Qe7 {[%emt 0:02:10]} 22. Qf4 {[%emt 0:00:14]} Kf8 {[%emt 0:05:44]} 23. Rc7 {[%emt 0:18:22]} g5 {[%emt 0:09:50]} 24. Qa4 {[%emt 0:13:28]} g4 $18 {[%emt 0:00:57]} 25. Nd4 {[%emt 0:01:56]} Qd8 {[%emt 0:04:05]} 26. Rxd7 {[%emt 0:08:03]} Bxd7 {[%emt 0:00:07]} 27. Bxd7 {[%emt 0:00:01]} Ke7 {[%emt 0:02:07]} 28. Bb5 {[%emt 0:02:38]} Qb6 {[%emt 0:03:18]} 29. Qd1 {[%emt 0:01:55]} a4 {[%emt 0:02:24]} 30. Qd2 {[%emt 0:01:42]} Rac8 {[%emt 0:03:28]} 31. Qf4 {[%emt 0:00:49]} Rg6 {[%emt 0:02:16]} 32. Bd3 {[%emt 0:00:12]} f5 {[%emt 0:00:24]} 33. exf6+ {[%emt 0:06:10]} Rxf6 {[%emt 0:00:06]} 34. Qxg4 {[%emt 0:00:01]} Rcf8 {[%emt 0:02:08]} 35. Re1 {[%emt 0:00:50]} h5 {[%emt 0:01:04]} 36. Qh4 {[%emt 0:01:11]} Kd6 {[%emt 0:01:27]} 37. Qg3+ {[%emt 0:03:45]} Ke7 {[%emt 0:00:41]} 38. h3 {[%emt 0:06:39]} R8f7 {[%emt 0:00:32]} 39. Qh4 {[%emt 0:03:04]} Kf8 {[%emt 0:00:32]} 40. Re2 {[%emt 0:02:00]} Qd6 {[%emt 0:00:34]} 41. Qxh5 {[%emt 0:30:28]} e5 {[%emt 0:30:25]} 42. Rxe5 {[%emt 0:02:20]} Rh6 {[%emt 0:00:00]} 43. Qe2 {[%emt 0:00:00]} 1-0

[Event "WJCC U20 Girls 2019"]
[Site "New Delhi"]
[Date "2019.10.21"]
[Round "7.5"]
[White "Afraoui, Anaelle"]
[Black "Berdnyk, Mariia"]
[Result "0-1"]
[ECO "B06"]
[WhiteElo "2106"]
[BlackElo "2349"]
[Annotator "NA"]
[PlyCount "72"]
[EventDate "2019.10.15"]
[EventType "swiss"]
[EventCountry "IND"]
[SourceTitle "playchess.com"]
[Source "ChessBase"]
[SourceQuality "1"]
[TimeControl "40/5400+30:1800+30"]

1. e4 {[%emt 0:00:00]} g6 {[%emt 0:00:00]} 2. d4 {[%emt 0:00:00]} Bg7 {[%emt 0:00:00]} 3. Nc3 {[%emt 0:00:07]} d6 {[%emt 0:00:00]} 4. Be3 {[%emt 0:01:09]} a6 {[%emt 0:00:00]} 5. Qd2 {[%emt 0:01:37]} b5 {[%emt 0:00:00]} 6. a4 {[%emt 0:04:42]} b4 {[%emt 0:01:11]} 7. Nce2 {[%emt 0:00:43]} a5 {[%emt 0:03:26]} 8. c3 {[%emt 0:02:59]} Na6 {[%emt 0:17:14]} 9. Ng3 {[%emt 0:05:28]} bxc3 $14 {[%emt 0:02:29]} 10. bxc3 {[%emt 0:01:13]} h5 {[%emt 0:05:33]} 11. Bb5+ {[%emt 0:05:48]} Bd7 {[%emt 0:00:09]} 12. h3 {[%emt 0:02:47]} c6 {[%emt 0:04:33]} 13. Bc4 {[%emt 0:04:05]} Nc7 {[%emt 0:04:47]} 14. Nf3 {[%emt 0:04:51]} h4 {[%emt 0:01:41]} 15. Ne2 {[%emt 0:02:58]} d5 {[%emt 0:06:53]} 16. exd5 {[%emt 0:04:03]} cxd5 {[%emt 0:00:10]} 17. Bd3 {[%emt 0:00:33]} Nf6 {[%emt 0:00:47]} 18. O-O {[%emt 0:01:51]} Ne4 {[%emt 0:01:12]} 19. Qc2 {[%emt 0:06:23]} Nd6 {[%emt 0:04:33]} 20. Bg5 {[%emt 0:08:10]} Bf5 {[%emt 0:00:48]} 21. Rfe1 {[%emt 0:10:39]} Ne6 {[%emt 0:01:06]} 22. Bxh4 {[%emt 0:04:47]} Be4 {[%emt 0:00:35]} 23. Bg3 {[%emt 0:01:34]} Bxf3 {[%emt 0:01:57]} 24. gxf3 {[%emt 0:00:01]} Qd7 {[%emt 0:03:28]} 25. Bxd6 {[%emt 0:17:40]} Qxd6 {[%emt 0:00:12]} 26. Ng3 {[%emt 0:01:50]} Nf4 {[%emt 0:04:43]} 27. Bf1 {[%emt 0:01:13]} Kf8 {[%emt 0:03:28]} 28. Rab1 {[%emt 0:01:08]} Bf6 {[%emt 0:03:35]} 29. Rb7 {[%emt 0:02:12]} Kg7 {[%emt 0:01:53]} 30. Qb2 {[%emt 0:01:25]} Nxh3+ {[%emt 0:01:20]} 31. Bxh3 {[%emt 0:01:09]} Rxh3 {[%emt 0:00:04]} 32. Re3 {[%emt 0:01:52]} Rah8 {[%emt 0:01:21]} 33. Kf1 {[%emt 0:00:44]} Qf4 {[%emt 0:06:17]} 34. Qd2 {[%emt 0:00:39]} Rxg3 {[%emt 0:01:19]} 35. Ke2 {[%emt 0:00:32]} Rh2 {[%emt 0:01:10]} 36. Qd3 {[%emt 0:00:30]} Rgg2 {[%emt 0:00:15]} 0-1

[Event "WJCC U20 Girls 2019"]
[Site "New Delhi"]
[Date "2019.10.21"]
[Round "7.6"]
[White "Antova, Gabriela"]
[Black "Arpita, Mukherjee"]
[Result "1-0"]
[ECO "E69"]
[WhiteElo "2318"]
[BlackElo "2271"]
[Annotator "NA"]
[PlyCount "121"]
[EventDate "2019.10.15"]
[EventType "swiss"]
[EventCountry "IND"]
[SourceTitle "playchess.com"]
[Source "ChessBase"]
[SourceQuality "1"]
[TimeControl "40/5400+30:1800+30"]

1. d4 {[%emt 0:00:00]} Nf6 {[%emt 0:00:49]} 2. c4 {[%emt 0:00:00]} g6 {[%emt 0:00:13]} 3. Nf3 {[%emt 0:00:00]} Bg7 {[%emt 0:00:12]} 4. g3 {[%emt 0:00:00]} d6 {[%emt 0:00:17]} 5. Bg2 {[%emt 0:00:07]} O-O {[%emt 0:00:18]} 6. O-O {[%emt 0:00:08]} Nbd7 {[%emt 0:00:23]} 7. Nc3 {[%emt 0:00:14]} e5 {[%emt 0:00:19]} 8. e4 {[%emt 0:00:10]} c6 {[%emt 0:00:28]} 9. h3 {[%emt 0:00:18]} exd4 {[%emt 0:00:21]} 10. Nxd4 {[%emt 0:00:19]} Qa5 {[%emt 0:00:40]} 11. Re1 {[%emt 0:01:16]} Re8 {[%emt 0:00:32]} 12. Be3 {[%emt 0:06:26]} Ne5 {[%emt 0:00:23]} 13. Bf1 {[%emt 0:00:45]} Be6 {[%emt 0:00:41]} 14. Nxe6 {[%emt 0:00:28]} Rxe6 {[%emt 0:00:15]} 15. Kg2 {[%emt 0:00:20]} Rae8 {[%emt 0:00:42] E69: King's Indian: Fianchetto: 6...Nbd7 7 0-0 e5 8 e4 c6 9 h3} 16. Rc1 {[%emt 0:01:16]} Ned7 {[%emt 0:08:22]} 17. f3 {[%emt 0:01:30]} a6 {[%emt 0:06:13]} 18. Qd2 {[%emt 0:10:12]} h5 {[%emt 0:09:29] [#]} 19. a3 $146 {[%emt 0:08:20]} ({Predecessor:} 19. Ne2 Qc7 20. Red1 Ne5 21. Nf4 R6e7 22. Qxd6 Qc8 23. Be2 {½-½ (54) Hammer,J (2625)-Lie,K (2503) Norway 2014}) 19... Qd8 {[%emt 0:16:18]} 20. Rcd1 {[%emt 0:04:16]} Qb8 $16 {[%emt 0:08:48]} 21. Ne2 {[%emt 0:13:40]} Ne5 {[%emt 0:17:51]} 22. Nf4 {[%emt 0:10:09]} Nxf3 {[%emt 0:00:52]} 23. Kxf3 {[%emt 0:01:18]} Nxe4 {[%emt 0:00:25]} 24. Qc1 {[%emt 0:03:06]} R6e7 {[%emt 0:04:28]} 25. Bd3 {[%emt 0:09:06]} Qc8 {[%emt 0:12:16]} 26. Kg2 {[%emt 0:05:46]} h4 {[%emt 0:09:15]} 27. gxh4 {[%emt 0:04:22]} Qf5 {[%emt 0:01:40]} 28. Ne2 {[%emt 0:03:59]} Qd7 {[%emt 0:00:56]} 29. Bd4 {[%emt 0:02:17]} Bxd4 {[%emt 0:00:31]} 30. Nxd4 {[%emt 0:00:01]} c5 {[%emt 0:00:10]} 31. Nf3 {[%emt 0:00:47]} Qf5 {[%emt 0:00:46]} 32. Bxe4 {[%emt 0:07:10]} Rxe4 {[%emt 0:00:02]} 33. Rxe4 {[%emt 0:00:07]} Rxe4 {[%emt 0:00:13]} 34. Re1 {[%emt 0:00:09]} Rxe1 {[%emt 0:00:44]} 35. Qxe1 {[%emt 0:01:19]} Qc2+ {[%emt 0:00:03]} 36. Qd2 {[%emt 0:00:10]} Qxc4 {[%emt 0:00:06]} 37. Qxd6 {[%emt 0:00:23]} Qe2+ {[%emt 0:00:39]} 38. Kg3 {[%emt 0:00:01]} Qxb2 {[%emt 0:00:33]} 39. Qxc5 {[%emt 0:00:05]} b5 {[%emt 0:00:30]} 40. Qc8+ {[%emt 0:02:12]} Kg7 {[%emt 0:00:06]} 41. Qxa6 {[%emt 0:31:16]} b4 {[%emt 0:02:15]} 42. axb4 {[%emt 0:00:00]} Qxb4 {[%emt 0:00:24]} 43. Qe2 {[%emt 0:00:00]} f6 {[%emt 0:02:31]} 44. Qd2 {[%emt 0:00:00]} Qb8+ {[%emt 0:00:08]} 45. Qf4 {[%emt 0:00:00]} Qb3 {[%emt 0:00:45]} 46. Qc7+ {[%emt 0:00:00]} Kf8 {[%emt 0:01:00]} 47. h5 {[%emt 0:00:00]} gxh5 {[%emt 0:00:37]} 48. Qc5+ {[%emt 0:00:00]} Kg7 {[%emt 0:00:09]} 49. Qxh5 {[%emt 0:00:00]} Qb8+ {[%emt 0:01:11]} 50. Kh4 {[%emt 0:00:00]} Qb6 {[%emt 0:00:31]} 51. Qg4+ {[%emt 0:00:00]} Kf7 {[%emt 0:00:16]} 52. Nd4 {[%emt 0:00:00]} Qb4 {[%emt 0:02:52]} 53. Kh5 {[%emt 0:00:00]} Qc5+ {[%emt 0:01:04]} 54. Kh6 {[%emt 0:01:03]} Qc1+ {[%emt 0:00:18]} 55. Kh7 {[%emt 0:00:37]} Qb1+ {[%emt 0:02:19]} 56. Qf5 {[%emt 0:01:13]} Qb7 {[%emt 0:00:07]} 57. Qg6+ {[%emt 0:03:35]} Kf8+ {[%emt 0:00:09]} 58. Kh8 {[%emt 0:00:47]} Qb6 {[%emt 0:01:11]} 59. Nf5 {[%emt 0:00:23]} Qe6 {[%emt 0:00:40]} 60. Qg7+ {[%emt 0:00:23]} Ke8 {[%emt 0:00:03]} 61. Qg8+ {[%emt 0:00:07]} 1-0

[Event "WJCC U20 Girls 2019"]
[Site "New Delhi"]
[Date "2019.10.21"]
[Round "7.9"]
[White "Pandey Srishti"]
[Black "Vantika Agrawal"]
[Result "1-0"]
[ECO "A01"]
[WhiteElo "1963"]
[BlackElo "2283"]
[Annotator "NA"]
[PlyCount "83"]
[EventDate "2019.10.15"]
[EventType "swiss"]
[EventCountry "IND"]
[SourceTitle "playchess.com"]
[Source "ChessBase"]
[SourceQuality "1"]
[TimeControl "40/5400+30:1800+30"]

1. b3 e5 2. Bb2 d6 3. e3 Nf6 4. d4 Nbd7 5. dxe5 dxe5 6. Nf3 Bd6 7. Nbd2 Qe7 8. Nc4 O-O 9. Be2 b6 10. O-O Bb7 11. a4 a5 12. Qc1 $15 Ne4 13. Nfd2 Nec5 14. Re1 Qg5 15. f3 f5 16. Bf1 Rae8 17. Qd1 Re6 18. Nxd6 cxd6 19. Qe2 Rh6 20. Rad1 Qh5 21. h3 Qg5 22. f4 exf4 23. Qc4+ Kh8 24. Qxf4 Qg6 25. Nf3 Ne4 26. Qh2 Ng3 27. Kf2 Nc5 28. Bd3 Nge4+ 29. Kg1 Nxd3 30. cxd3 Nc5 31. Nd4 Rh5 32. Rf1 Bxg2 33. Qxg2 Rg5 34. Rf2 f4 35. exf4 Rxf4 36. Qxg5 Qxg5+ 37. Rg2 Qh6 38. Re1 Rf8 39. Nf5 Qf6 40. Bxf6 gxf6 41. Re7 Nxd3 42. Rgg7 1-0

[Event "WJCC U20 Girls 2019"]
[Site "New Delhi"]
[Date "2019.10.21"]
[Round "7.10"]
[White "Diakonova, Ekaterina"]
[Black "Sapale Saloni"]
[Result "1/2-1/2"]
[ECO "B03"]
[WhiteElo "2231"]
[BlackElo "2142"]
[Annotator "NA"]
[PlyCount "92"]
[EventDate "2019.10.15"]
[EventType "swiss"]
[EventCountry "IND"]
[SourceTitle "playchess.com"]
[Source "ChessBase"]
[SourceQuality "1"]
[TimeControl "40/5400+30:1800+30"]

1. e4 {[%emt 0:00:00]} Nf6 {[%emt 0:00:00]} 2. e5 {[%emt 0:03:23]} Nd5 {[%emt 0:00:00]} 3. c4 {[%emt 0:00:04]} Nb6 {[%emt 0:00:00]} 4. d4 {[%emt 0:00:04]} d6 {[%emt 0:00:09]} 5. exd6 {[%emt 0:00:03]} cxd6 {[%emt 0:00:07]} 6. Nc3 {[%emt 0:00:28]} g6 {[%emt 0:00:09]} 7. Be3 {[%emt 0:00:04]} Bg7 {[%emt 0:00:09]} 8. Rc1 {[%emt 0:00:41]} O-O {[%emt 0:00:10]} 9. b3 {[%emt 0:00:01]} e5 {[%emt 0:00:10]} 10. dxe5 {[%emt 0:00:04]} dxe5 {[%emt 0:00:07]} 11. Qxd8 {[%emt 0:00:03]} Rxd8 {[%emt 0:00:08]} 12. c5 {[%emt 0:00:02]} N6d7 {[%emt 0:00:09]} 13. Bc4 {[%emt 0:00:13]} Nc6 {[%emt 0:00:21]} 14. Nf3 {[%emt 0:00:04]} h6 {[%emt 0:00:42] B03: Alekhine's Defence: Four Pawns Attack} 15. O-O {[%emt 0:05:32]} Nf8 {[%emt 0:00:42]} 16. Nb5 {[%emt 0:10:15]} Be6 {[%emt 0:01:22]} 17. Nd6 {[%emt 0:05:47]} Bxc4 {[%emt 0:01:56]} 18. Rxc4 {[%emt 0:00:19]} Rd7 {[%emt 0:00:07]} 19. b4 {[%emt 0:04:21]} Ne6 {[%emt 0:07:29]} 20. Re1 {[%emt 0:20:50]} Rad8 $146 {[%emt 0:09:58]} ({Predecessor:} 20... f5 21. b5 Ne7 22. Bxh6 Bxh6 23. Nxe5 {½-½ (42) Kulaots,K (2574)-Chekhova Kostina,T (2246) Minsk 2015}) 21. Bc1 {[%emt 0:14:31]} (21. b5 $11 Ne7 22. g3) 21... b6 {[%emt 0:12:52]} 22. Ba3 {[%emt 0:02:20]} Ncd4 {[%emt 0:17:40]} 23. Nxd4 $15 {[%emt 0:10:33]} Nxd4 {[%emt 0:05:02]} 24. h3 {[%emt 0:06:39]} Rc7 {[%emt 0:07:26]} 25. Rcc1 {[%emt 0:06:22]} f5 {[%emt 0:08:43]} 26. Nc4 {[%emt 0:00:51]} bxc5 {[%emt 0:02:33]} 27. Nxe5 {[%emt 0:02:47]} Nb5 {[%emt 0:01:57]} 28. Bb2 {[%emt 0:00:14]} cxb4 {[%emt 0:06:02]} 29. Rxc7 {[%emt 0:00:16]} Nxc7 {[%emt 0:00:06]} 30. Nc6 {[%emt 0:01:00]} Rd7 {[%emt 0:00:40]} 31. Bxg7 {[%emt 0:01:36]} Kxg7 {[%emt 0:00:09]} 32. Nxb4 {[%emt 0:00:30]} Kf6 {[%emt 0:01:10]} 33. Rc1 {[%emt 0:00:06]} Ne6 {[%emt 0:00:33]} 34. Rc6 {[%emt 0:01:09]} a5 {[%emt 0:03:34]} 35. Na6 {[%emt 0:01:53]} Rd1+ {[%emt 0:01:16]} 36. Kh2 {[%emt 0:00:01]} Ke5 {[%emt 0:00:49]} 37. Nc5 {[%emt 0:02:16]} Nxc5 {[%emt 0:00:34]} 38. Rxc5+ {[%emt 0:00:04]} Rd5 {[%emt 0:00:07]} 39. Rc6 {[%emt 0:01:07]} Rd6 {[%emt 0:00:13]} 40. Rc5+ {[%emt 0:00:13]} Rd5 {[%emt 0:00:06]} 41. f4+ {[%emt 0:32:59]} Ke6 {[%emt 0:31:42]} 42. Rc4 {[%emt 0:00:00]} Kd7 {[%emt 0:00:00]} 43. Rc3 {[%emt 0:00:00]} Rd4 {[%emt 0:00:00]} 44. Kg3 {[%emt 0:00:00]} Ra4 {[%emt 0:00:00]} 45. a3 {[%emt 0:00:00]} Kd6 {[%emt 0:00:00]} 46. Kf3 {[%emt 0:00:00] Kc6 Re3} Kd5 {[%emt 0:02:10] Re6} 1/2-1/2

[Event "WJCC U20 Girls 2019"]
[Site "New Delhi"]
[Date "2019.10.21"]
[Round "7.11"]
[White "Potluri Supreetha"]
[Black "Mrudul Dehankar"]
[Result "1/2-1/2"]
[ECO "E11"]
[WhiteElo "1767"]
[BlackElo "2227"]
[Annotator "NA"]
[PlyCount "95"]
[EventDate "2019.10.15"]
[EventType "swiss"]
[EventCountry "IND"]
[SourceTitle "playchess.com"]
[Source "ChessBase"]
[SourceQuality "1"]
[TimeControl "40/5400+30:1800+30"]

1. d4 {[%emt 0:00:00]} Nf6 {[%emt 0:00:00]} 2. Nf3 {[%emt 0:00:00]} e6 {[%emt 0:00:34]} 3. c4 {[%emt 0:00:00]} Bb4+ {[%emt 0:01:16]} 4. Nbd2 {[%emt 0:00:06]} b6 {[%emt 0:00:33]} 5. a3 {[%emt 0:02:39]} Bxd2+ {[%emt 0:00:43]} 6. Qxd2 {[%emt 0:01:41]} Bb7 {[%emt 0:00:53]} 7. e3 {[%emt 0:00:18]} d6 {[%emt 0:00:31]} 8. Be2 {[%emt 0:02:09]} Nbd7 {[%emt 0:01:25]} 9. O-O {[%emt 0:00:35]} O-O {[%emt 0:01:11]} 10. b4 {[%emt 0:03:37]} Ne4 {[%emt 0:04:23]} 11. Qc2 {[%emt 0:00:26]} f5 {[%emt 0:03:58]} 12. Bb2 {[%emt 0:01:45]} Qe7 {[%emt 0:29:30]} 13. Rad1 {[%emt 0:08:04]} a5 {[%emt 0:03:08]} 14. d5 {[%emt 0:32:55]} e5 {[%emt 0:03:09]} 15. Bd3 {[%emt 0:37:17]} Ndf6 $11 {[%emt 0:04:22]} 16. Ne1 {[%emt 0:05:07]} g6 {[%emt 0:16:31]} 17. f3 {[%emt 0:01:08]} Ng5 {[%emt 0:00:05]} 18. f4 {[%emt 0:00:08]} Ng4 {[%emt 0:11:00]} 19. Bc1 {[%emt 0:01:00]} Nf7 {[%emt 0:06:53]} 20. e4 {[%emt 0:00:19]} fxe4 {[%emt 0:06:42]} 21. Bxe4 {[%emt 0:00:05]} exf4 {[%emt 0:00:41]} 22. Bxg6 {[%emt 0:01:03]} Ng5 {[%emt 0:01:26]} 23. Bd3 {[%emt 0:00:31]} Ne3 {[%emt 0:01:45]} 24. Bxe3 {[%emt 0:00:28]} fxe3 {[%emt 0:00:09]} 25. Nf3 {[%emt 0:00:34]} Nxf3+ {[%emt 0:01:04]} 26. gxf3 {[%emt 0:00:27]} Qe5 {[%emt 0:00:31]} 27. Bxh7+ {[%emt 0:00:27]} Kf7 {[%emt 0:00:35]} 28. Rde1 {[%emt 0:00:30]} Rh8 {[%emt 0:00:27]} 29. Qg6+ {[%emt 0:00:31]} Kf8 {[%emt 0:00:29]} 30. f4 {[%emt 0:00:32]} Qg7 {[%emt 0:00:30]} 31. Qxg7+ {[%emt 0:00:29]} Kxg7 {[%emt 0:00:02]} 32. Bd3 {[%emt 0:00:30]} axb4 {[%emt 0:00:55]} 33. axb4 {[%emt 0:00:01]} Ra2 {[%emt 0:00:35]} 34. Re2 {[%emt 0:00:57]} Rxe2 {[%emt 0:00:28]} 35. Bxe2 {[%emt 0:00:01]} Kf6 {[%emt 0:00:33]} 36. Rf3 {[%emt 0:00:34]} Re8 {[%emt 0:00:28]} 37. b5 {[%emt 0:01:02]} Bc8 {[%emt 0:00:27]} 38. h3 {[%emt 0:00:30]} Bf5 {[%emt 0:00:31]} 39. Kf1 {[%emt 0:00:29]} Bg6 {[%emt 0:00:33]} 40. f5 {[%emt 0:00:30]} Bf7 {[%emt 0:00:28]} 41. Rf4 {[%emt 0:30:34]} Ke5 {[%emt 0:03:55]} 42. Rh4 {[%emt 0:00:00]} Kxf5 {[%emt 0:08:08]} 43. Bd3+ {[%emt 0:00:00]} Kg5 {[%emt 0:01:57]} 44. Rg4+ {[%emt 0:00:00]} Kh6 {[%emt 0:03:12]} 45. Rh4+ {[%emt 0:00:00]} Kg5 {[%emt 0:03:01]} 46. Rg4+ {[%emt 0:00:00]} Kh6 {[%emt 0:03:27]} 47. Rh4+ {[%emt 0:00:00]} Kg5 {[%emt 0:01:47]} 48. Rg4+ {[%emt 0:00:00] Kf5} 1/2-1/2

[Event "WJCC U20 Girls 2019"]
[Site "New Delhi"]
[Date "2019.10.21"]
[Round "7.13"]
[White "Nilssen, Ellen Fredericia"]
[Black "Munkhzul, Turmunkh"]
[Result "0-1"]
[ECO "A22"]
[WhiteElo "2137"]
[BlackElo "2332"]
[Annotator "NA"]
[PlyCount "58"]
[EventDate "2019.10.15"]
[EventType "swiss"]
[EventCountry "IND"]
[SourceTitle "playchess.com"]
[Source "ChessBase"]
[SourceQuality "1"]
[TimeControl "40/5400+30:1800+30"]

1. c4 {[%emt 0:00:00]} e5 {[%emt 0:00:47]} 2. Nc3 {[%emt 0:00:00]} Nf6 {[%emt 0:01:16]} 3. g3 {[%emt 0:00:01]} d5 {[%emt 0:02:02]} 4. cxd5 {[%emt 0:00:13]} Nxd5 {[%emt 0:00:17]} 5. Bg2 {[%emt 0:00:09]} Nb6 {[%emt 0:01:26]} 6. d3 {[%emt 0:04:44]} Be7 {[%emt 0:03:20]} 7. Nf3 {[%emt 0:00:59]} Nc6 {[%emt 0:01:46]} 8. O-O {[%emt 0:04:00]} O-O {[%emt 0:02:15]} 9. Be3 {[%emt 0:04:34]} Be6 {[%emt 0:05:04]} 10. Nd2 {[%emt 0:08:23]} f5 {[%emt 0:11:41]} 11. Nb3 {[%emt 0:06:37]} Kh8 {[%emt 0:17:32]} 12. Nc5 {[%emt 0:06:02]} Bc8 {[%emt 0:01:01]} 13. f4 $11 {[%emt 0:06:33]} exf4 {[%emt 0:05:28]} 14. gxf4 {[%emt 0:00:23]} Rf6 {[%emt 0:00:18]} 15. b4 {[%emt 0:09:18]} Nxb4 {[%emt 0:16:39]} 16. Nxb7 {[%emt 0:00:44]} Bxb7 {[%emt 0:05:34]} 17. Bxb7 {[%emt 0:00:10]} N6d5 {[%emt 0:01:22]} 18. Nxd5 {[%emt 0:09:33]} Nxd5 {[%emt 0:00:06]} 19. Bf2 {[%emt 0:00:22]} Rb8 {[%emt 0:05:20]} 20. Bxd5 {[%emt 0:07:45]} Qxd5 {[%emt 0:00:06]} 21. d4 {[%emt 0:00:11]} Rg6+ {[%emt 0:00:46]} 22. Bg3 {[%emt 0:00:09]} h5 {[%emt 0:02:57]} 23. e4 {[%emt 0:04:50]} fxe4 {[%emt 0:00:30]} 24. Kh1 {[%emt 0:00:35]} Qf5 {[%emt 0:01:51]} 25. Rb1 {[%emt 0:03:27]} Rd8 {[%emt 0:02:24]} 26. Qc2 {[%emt 0:00:57]} c6 {[%emt 0:02:11]} 27. Rb7 {[%emt 0:04:42]} Bf6 {[%emt 0:00:38]} 28. Re1 {[%emt 0:01:43]} Qh3 {[%emt 0:01:44]} 29. Rf1 {[%emt 0:06:19]} Qxf1# {[%emt 0:00:08]} 0-1